[Event "XIII Mediterranean Championship 2023"]
[Site "Castell-Platja d Aro"]
[Date "2023.11.05"]
[Round "2.11"]
[White "Trepat Herranz, Joan"]
[Black "Fortuny Profitos, Jordi"]
[Result "1-0"]
[ECO "B47"]
[WhiteElo "2385"]
[BlackElo "2135"]
[Annotator "RC"]
[PlyCount "51"]
[EventDate "2023.10.26"]
[EventType "swiss"]
[EventCountry "ESP"]
[SourceTitle "playchess.com"]
[Source "ChessBase"]
[SourceQuality "1"]
[TimeControl "5400+30"]

1. e4 {[%emt 0:02:29]} c5 {[%emt 0:00:05]} 2. Nf3 {[%emt 0:00:15]} e6 {[%emt 0:00:12]} 3. d4 {[%emt 0:00:27]} cxd4 {[%emt 0:00:04]} 4. Nxd4 {[%emt 0:00:09]} Nc6 {[%emt 0:00:04]} 5. Nc3 {[%emt 0:00:43]} Qc7 {[%emt 0:00:45]} 6. Qd3 {[%emt 0:00:31]} a6 {[%emt 0:03:21]} 7. Nxc6 {[%emt 0:00:24]} bxc6 {[%emt 0:01:28]} 8. Qg3 {[%emt 0:00:14]} Qxg3 {[%emt 0:04:00]} 9. hxg3 {[%emt 0:00:08]} d5 {[%emt 0:01:31]} 10. Bd3 {[%emt 0:02:12]} Nf6 {[%emt 0:13:50]} 11. f3 {[%emt 0:03:28]} Bd6 {[%emt 0:04:20]} 12. g4 {[%emt 0:05:07]} h5 {[%emt 0:02:51]} 13. Bg5 {[%emt 0:07:54]} Be5 {[%emt 0:12:48]} 14. O-O-O {[%emt 0:03:17]} Bb7 {[%emt 0:04:36]} 15. Bxf6 {[%emt 0:27:39]} Bxf6 {[%emt 0:00:30]} 16. gxh5 {[%emt 0:00:34]} Bxc3 {[%emt 0:04:09]} 17. bxc3 {[%emt 0:00:11]} c5 {[%emt 0:02:38]} 18. exd5 {[%emt 0:02:02]} Bxd5 {[%emt 0:01:31]} 19. c4 {[%emt 0:02:36]} Bc6 {[%emt 0:00:45]} 20. Kd2 {[%emt 0:02:11]} Rb8 {[%emt 0:02:16]} 21. Ke3 {[%emt 0:02:21]} Ke7 {[%emt 0:03:56]} 22. g4 {[%emt 0:03:08]} f6 {[%emt 0:03:26]} 23. Rb1 {[%emt 0:01:08]} Rxb1 {[%emt 0:01:23]} 24. Rxb1 {[%emt 0:00:07]} Kd7 {[%emt 0:00:47]} 25. Rb6 {[%emt 0:03:43]} Ra8 {[%emt 0:02:37]} 26. Rxc6 {[%emt 0:00:12]} 1-0

[Event "XIII Mediterranean Championship 2023"]
[Site "Castell-Platja d Aro"]
[Date "2023.11.05"]
[Round "2.12"]
[White "Rodriguez Redondo, Adhara"]
[Black "Lacasa Diaz, Jose Antonio"]
[Result "1-0"]
[ECO "B67"]
[WhiteElo "2117"]
[BlackElo "2353"]
[Annotator "RC"]
[PlyCount "80"]
[EventDate "2023.10.26"]
[EventType "swiss"]
[EventCountry "ESP"]
[SourceTitle "playchess.com"]
[Source "ChessBase"]
[SourceQuality "1"]
[TimeControl "5400+30"]

1. e4 {[%emt 0:00:03]} c5 {[%emt 0:01:31]} 2. Nf3 {[%emt 0:00:06]} d6 {[%emt 0:00:17]} 3. d4 {[%emt 0:00:07]} cxd4 {[%emt 0:00:08]} 4. Nxd4 {[%emt 0:00:05]} Nf6 {[%emt 0:00:05]} 5. Nc3 {[%emt 0:00:04]} Nc6 {[%emt 0:00:08]} 6. Bg5 {[%emt 0:00:47]} e6 {[%emt 0:00:18]} 7. Qd2 {[%emt 0:00:41]} a6 {[%emt 0:00:15]} 8. O-O-O {[%emt 0:00:36]} Bd7 {[%emt 0:00:16]} 9. Kb1 {[%emt 0:00:37]} Nxd4 {[%emt 0:02:43]} 10. Qxd4 {[%emt 0:00:07]} Be7 {[%emt 0:00:07]} 11. f3 {[%emt 0:11:11]} Qc7 {[%emt 0:07:47]} 12. g4 {[%emt 0:05:54]} b5 {[%emt 0:07:46]} 13. Bd3 {[%emt 0:05:48]} O-O {[%emt 0:06:27]} 14. h4 {[%emt 0:04:31]} b4 {[%emt 0:05:08]} 15. Ne2 {[%emt 0:03:02]} Rfc8 {[%emt 0:12:04]} 16. Ng3 {[%emt 0:11:54]} Bb5 {[%emt 0:19:40]} 17. Nh5 {[%emt 0:08:00]} e5 {[%emt 0:01:51]} 18. Qf2 {[%emt 0:04:10]} Nxh5 {[%emt 0:02:47]} 19. gxh5 {[%emt 0:00:23]} h6 {[%emt 0:03:31]} 20. Be3 {[%emt 0:03:32]} Kh7 {[%emt 0:09:14]} 21. Rh2 {[%emt 0:12:56]} Bxd3 {[%emt 0:01:50]} 22. Rxd3 {[%emt 0:02:40]} a5 {[%emt 0:00:42]} 23. f4 {[%emt 0:03:26]} Bf6 {[%emt 0:05:06]} 24. Rg2 {[%emt 0:13:01]} Re8 {[%emt 0:01:53]} 25. f5 {[%emt 0:04:23]} Rec8 {[%emt 0:04:38]} 26. Qd2 {[%emt 0:04:46]} Ra6 {[%emt 0:01:16]} 27. Bg5 {[%emt 0:00:35]} Qe7 {[%emt 0:00:28]} 28. Bxf6 {[%emt 0:00:27]} Qxf6 {[%emt 0:00:05]} 29. Rdg3 {[%emt 0:00:28]} Rac6 {[%emt 0:03:54]} 30. Qd1 {[%emt 0:00:36]} a4 {[%emt 0:01:02]} 31. Qg1 {[%emt 0:00:25]} Rg8 {[%emt 0:00:28]} 32. Rg4 {[%emt 0:00:37]} Kh8 {[%emt 0:00:49]} 33. R2g3 {[%emt 0:00:24]} Rc5 {[%emt 0:00:54]} 34. Qg2 {[%emt 0:00:35]} Rc4 {[%emt 0:00:47]} 35. a3 {[%emt 0:01:03]} bxa3 {[%emt 0:00:25]} 36. Rxa3 {[%emt 0:00:00]} Rb4 {[%emt 0:01:26]} 37. Rag3 {[%emt 0:00:00]} Rbb8 {[%emt 0:00:34]} 38. Ka2 {[%emt 0:00:56]} d5 {[%emt 0:00:25]} 39. exd5 {[%emt 0:00:29]} e4 {[%emt 0:00:39]} 40. c3 {[%emt 0:00:29]} Qb6 {[%emt 0:01:06]} 1-0

[Event "XIII Mediterranean Championship 2023"]
[Site "Castell-Platja d Aro"]
[Date "2023.11.05"]
[Round "2.13"]
[White "Guillo Longares, Cecilia"]
[Black "Lazaro Pujol, Abel"]
[Result "0-1"]
[ECO "D38"]
[WhiteElo "2065"]
[BlackElo "2289"]
[Annotator "RC"]
[PlyCount "72"]
[EventDate "2023.10.26"]
[EventType "swiss"]
[EventCountry "ESP"]
[SourceTitle "playchess.com"]
[Source "ChessBase"]
[SourceQuality "1"]
[TimeControl "5400+30"]

1. d4 {[%emt 0:00:03]} d5 {[%emt 0:02:45]} 2. c4 {[%emt 0:00:02]} e6 {[%emt 0:00:15]} 3. Nc3 {[%emt 0:00:06]} Bb4 {[%emt 0:01:50]} 4. Nf3 {[%emt 0:00:27]} Nf6 {[%emt 0:00:30]} 5. cxd5 {[%emt 0:00:05]} exd5 {[%emt 0:00:37]} 6. Bg5 {[%emt 0:00:05]} h6 {[%emt 0:00:57]} 7. Bh4 {[%emt 0:00:05]} Bf5 {[%emt 0:00:17]} 8. Qb3 {[%emt 0:04:08]} Nc6 {[%emt 0:03:29]} 9. Bxf6 {[%emt 0:08:15]} Qxf6 {[%emt 0:02:01]} 10. a3 {[%emt 0:10:23]} Ba5 {[%emt 0:05:53]} 11. e3 {[%emt 0:14:45]} O-O {[%emt 0:07:29]} 12. Be2 {[%emt 0:17:49]} Ne7 {[%emt 0:06:37]} 13. O-O {[%emt 0:00:47]} Qb6 {[%emt 0:12:13]} 14. Qxb6 {[%emt 0:12:39]} Bxb6 {[%emt 0:00:42]} 15. Na4 {[%emt 0:00:55]} c6 {[%emt 0:06:43]} 16. Nxb6 {[%emt 0:01:16]} axb6 {[%emt 0:00:08]} 17. Ne5 {[%emt 0:01:03]} f6 {[%emt 0:06:44]} 18. Nd3 {[%emt 0:03:19]} Nc8 {[%emt 0:01:53]} 19. Nf4 {[%emt 0:06:28]} Nd6 {[%emt 0:06:17]} 20. g4 {[%emt 0:04:06]} Bd7 {[%emt 0:04:03]} 21. h3 {[%emt 0:03:45]} g5 {[%emt 0:03:19]} 22. Nh5 {[%emt 0:07:42]} f5 {[%emt 0:05:51]} 23. gxf5 {[%emt 0:00:41]} Bxf5 {[%emt 0:02:02]} 24. Kh2 {[%emt 0:02:24]} Rae8 {[%emt 0:04:14]} 25. Ng3 {[%emt 0:00:48]} Bg6 {[%emt 0:00:23]} 26. Rac1 {[%emt 0:00:44]} Re7 {[%emt 0:00:52]} 27. a4 {[%emt 0:00:36]} Kg7 {[%emt 0:01:17]} 28. b3 {[%emt 0:00:19]} Rh8 {[%emt 0:02:37]} 29. Nh5+ {[%emt 0:00:38]} Bxh5 {[%emt 0:04:33]} 30. Bxh5 {[%emt 0:00:02]} Rf8 {[%emt 0:00:07]} 31. Kg2 {[%emt 0:01:01]} Ne4 {[%emt 0:01:02]} 32. Rc2 {[%emt 0:00:12]} Nd6 {[%emt 0:02:11]} 33. Rg1 {[%emt 0:00:49]} Nf5 {[%emt 0:01:14]} 34. Kh2 {[%emt 0:00:19]} Rf6 {[%emt 0:00:53]} 35. Kg2 {[%emt 0:00:39]} Rxe3 {[%emt 0:01:30]} 36. fxe3 {[%emt 0:00:31]} Nxe3+ {[%emt 0:00:05]} 0-1

[Event "XIII Mediterranean Championship 2023"]
[Site "Castell-Platja d Aro"]
[Date "2023.11.05"]
[Round "2.14"]
[White "Iermito, Sebastian"]
[Black "Zvereva, Marija"]
[Result "1-0"]
[ECO "C10"]
[WhiteElo "2521"]
[BlackElo "2144"]
[Annotator "RC"]
[PlyCount "47"]
[EventDate "2023.10.26"]
[EventType "swiss"]
[EventCountry "ESP"]
[SourceTitle "playchess.com"]
[Source "ChessBase"]
[SourceQuality "1"]
[TimeControl "5400+30"]

1. e4 {[%emt 0:00:02]} e6 {[%emt 0:07:43]} 2. d4 {[%emt 0:01:02]} d5 {[%emt 0:00:28]} 3. Nd2 {[%emt 0:00:58]} dxe4 {[%emt 0:00:22]} 4. Nxe4 {[%emt 0:00:05]} Nd7 {[%emt 0:00:03]} 5. Nf3 {[%emt 0:00:38]} Ngf6 {[%emt 0:00:15]} 6. Nxf6+ {[%emt 0:01:27]} Nxf6 {[%emt 0:01:59]} 7. c3 {[%emt 0:03:21]} Be7 {[%emt 0:12:55]} 8. Bd3 {[%emt 0:00:07]} O-O {[%emt 0:03:45]} 9. O-O {[%emt 0:00:05]} b6 {[%emt 0:04:46]} 10. Qe2 {[%emt 0:00:25]} Bb7 {[%emt 0:00:34]} 11. Bf4 {[%emt 0:00:15]} c5 {[%emt 0:12:12]} 12. dxc5 {[%emt 0:00:17]} Bxc5 {[%emt 0:00:25]} 13. Rad1 {[%emt 0:00:17]} Qc8 {[%emt 0:00:36]} 14. Ne5 {[%emt 0:03:27]} Rd8 {[%emt 0:21:33]} 15. Bg5 {[%emt 0:13:27]} Be7 {[%emt 0:13:14]} 16. Rfe1 {[%emt 0:09:17]} h6 {[%emt 0:05:08]} 17. Bh4 {[%emt 0:04:46]} Nd5 {[%emt 0:03:43]} 18. Qh5 {[%emt 0:07:09]} Rf8 {[%emt 0:00:59]} 19. Bxe7 {[%emt 0:02:51]} Nxe7 {[%emt 0:00:12]} 20. Re3 {[%emt 0:00:05]} f5 {[%emt 0:06:37]} 21. Bb5 {[%emt 0:06:51]} Rf6 {[%emt 0:02:44]} 22. Rd7 {[%emt 0:05:20]} a6 {[%emt 0:00:44]} 23. Rxe7 {[%emt 0:00:57]} axb5 {[%emt 0:00:02]} 24. Rg3 {[%emt 0:00:36]} 1-0

[Event "XIII Mediterranean Championship 2023"]
[Site "Castell-Platja d Aro"]
[Date "2023.11.05"]
[Round "2.15"]
[White "Masague Artero, Guerau"]
[Black "Pla Almenar, Nel"]
[Result "1/2-1/2"]
[ECO "A92"]
[WhiteElo "2305"]
[BlackElo "2070"]
[Annotator "RC"]
[PlyCount "98"]
[EventDate "2023.10.26"]
[EventType "swiss"]
[EventCountry "ESP"]
[SourceTitle "playchess.com"]
[Source "ChessBase"]
[SourceQuality "1"]
[TimeControl "5400+30"]

1. d4 {[%emt 0:00:03]} f5 {[%emt 0:00:58]} 2. g3 {[%emt 0:02:14]} e6 {[%emt 0:01:18]} 3. Bg2 {[%emt 0:00:08]} Nf6 {[%emt 0:00:24]} 4. Nf3 {[%emt 0:00:31]} Be7 {[%emt 0:00:26]} 5. c4 {[%emt 0:00:30]} d5 {[%emt 0:00:47]} 6. b3 {[%emt 0:09:04]} Ne4 {[%emt 0:03:26]} 7. Bb2 {[%emt 0:01:08]} Nc6 {[%emt 0:03:09]} 8. e3 {[%emt 0:01:56]} h5 {[%emt 0:04:49]} 9. h4 {[%emt 0:03:52]} Bf6 {[%emt 0:15:26]} 10. Nc3 {[%emt 0:01:09]} Ne7 {[%emt 0:09:33]} 11. Qc2 {[%emt 0:03:02]} Bd7 {[%emt 0:08:10]} 12. Rc1 {[%emt 0:07:28]} c6 {[%emt 0:04:25]} 13. Ne2 {[%emt 0:03:30]} Ng6 {[%emt 0:15:54]} 14. a3 {[%emt 0:19:53]} Qc7 {[%emt 0:01:20]} 15. Nf4 {[%emt 0:04:20]} Nxf4 {[%emt 0:04:07]} 16. exf4 {[%emt 0:02:10]} dxc4 {[%emt 0:03:04]} 17. Qxc4 {[%emt 0:10:26]} Qa5+ {[%emt 0:05:06]} 18. b4 {[%emt 0:00:07]} Qd5 {[%emt 0:00:36]} 19. Qc2 {[%emt 0:00:19]} Qb5 {[%emt 0:06:46]} 20. Bf1 {[%emt 0:11:40]} Qb6 {[%emt 0:00:28]} 21. Bc4 {[%emt 0:02:45]} O-O {[%emt 0:01:26]} 22. O-O {[%emt 0:00:50]} a5 {[%emt 0:01:02]} 23. Qb3 {[%emt 0:01:14]} Rfe8 {[%emt 0:01:26]} 24. Rfe1 {[%emt 0:01:31]} Kf7 {[%emt 0:01:52]} 25. Ne5+ {[%emt 0:05:03]} Bxe5 {[%emt 0:00:06]} 26. fxe5 {[%emt 0:00:04]} axb4 {[%emt 0:01:15]} 27. axb4 {[%emt 0:00:39]} Nd2 {[%emt 0:01:56]} 28. Qd1 {[%emt 0:00:04]} Qxb4 {[%emt 0:00:29]} 29. Qxh5+ {[%emt 0:02:46]} Kg8 {[%emt 0:00:39]} 30. Bc3 {[%emt 0:00:56]} Qxc4 {[%emt 0:00:23]} 31. Bxd2 {[%emt 0:00:00]} Qxd4 {[%emt 0:00:37]} 32. Bf4 {[%emt 0:00:01]} Ra2 {[%emt 0:01:16]} 33. Rf1 {[%emt 0:00:01]} c5 {[%emt 0:00:52]} 34. Rcd1 {[%emt 0:02:20]} Qa4 {[%emt 0:00:04]} 35. Bh6 {[%emt 0:01:46]} gxh6 {[%emt 0:02:38]} 36. Qg6+ {[%emt 0:00:01]} Kh8 {[%emt 0:00:49]} 37. Qxh6+ {[%emt 0:00:03]} Kg8 {[%emt 0:00:01]} 38. Qg6+ {[%emt 0:01:23]} Kh8 {[%emt 0:00:02]} 39. h5 {[%emt 0:00:44]} Bc6 {[%emt 0:01:05]} 40. Qf6+ {[%emt 0:01:02]} Kg8 {[%emt 0:00:39]} 41. Rd8 {[%emt 0:01:19]} Rxd8 {[%emt 0:00:44]} 42. Qxd8+ {[%emt 0:00:34]} Kf7 {[%emt 0:00:40]} 43. Qf6+ {[%emt 0:00:11]} Ke8 {[%emt 0:00:05]} 44. Qxe6+ {[%emt 0:00:02]} Kd8 {[%emt 0:00:06]} 45. Qd6+ {[%emt 0:00:32]} Kc8 {[%emt 0:00:21]} 46. Qf8+ {[%emt 0:02:35]} Kc7 {[%emt 0:00:01]} 47. Qd6+ {[%emt 0:00:12]} Kc8 {[%emt 0:00:38]} 48. Qf8+ {[%emt 0:01:23]} Kc7 {[%emt 0:00:00]} 49. Qd6+ {[%emt 0:00:32]} Kc8 {[%emt 0:00:04]} 1/2-1/2

[Event "XIII Mediterranean Championship 2023"]
[Site "Castell-Platja d Aro"]
[Date "2023.11.05"]
[Round "2.16"]
[White "Hernando Rodrigo, Julio Antonio"]
[Black "De Lomas Busquets, Alba"]
[Result "1/2-1/2"]
[ECO "D20"]
[WhiteElo "2202"]
[BlackElo "1873"]
[Annotator "RC"]
[PlyCount "63"]
[EventDate "2023.10.26"]
[EventType "swiss"]
[EventCountry "ESP"]
[SourceTitle "playchess.com"]
[Source "ChessBase"]
[SourceQuality "1"]
[TimeControl "5400+30"]

1. d4 {[%emt 0:00:04]} d5 {[%emt 0:00:10]} 2. c4 {[%emt 0:00:11]} dxc4 {[%emt 0:00:09]} 3. e4 {[%emt 0:00:33]} Nc6 {[%emt 0:00:21]} 4. Nf3 {[%emt 0:01:58]} Bg4 {[%emt 0:00:31]} 5. d5 {[%emt 0:01:37]} Ne5 {[%emt 0:02:26]} 6. Bf4 {[%emt 0:00:41]} Ng6 {[%emt 0:02:18]} 7. Be3 {[%emt 0:02:23]} Ne5 {[%emt 0:08:14]} 8. Bd4 {[%emt 0:24:01]} Bxf3 {[%emt 0:07:45]} 9. gxf3 {[%emt 0:00:07]} Qd6 {[%emt 0:02:22]} 10. Nc3 {[%emt 0:02:14]} O-O-O {[%emt 0:17:12]} 11. Be2 {[%emt 0:08:34]} e6 {[%emt 0:02:54]} 12. Kf1 {[%emt 0:07:25]} a6 {[%emt 0:06:53]} 13. f4 {[%emt 0:04:27]} Nd3 {[%emt 0:02:13]} 14. e5 {[%emt 0:00:25]} Qd7 {[%emt 0:02:05]} 15. Bxd3 {[%emt 0:07:58]} cxd3 {[%emt 0:00:06]} 16. d6 {[%emt 0:03:55]} Qc6 {[%emt 0:08:54]} 17. Rg1 {[%emt 0:00:09]} Qc4 {[%emt 0:01:11]} 18. Be3 {[%emt 0:00:20]} cxd6 {[%emt 0:02:29]} 19. b3 {[%emt 0:00:42]} Qc6 {[%emt 0:01:49]} 20. Rc1 {[%emt 0:00:19]} Kb8 {[%emt 0:01:14]} 21. Qxd3 {[%emt 0:01:27]} Ne7 {[%emt 0:05:28]} 22. a4 {[%emt 0:09:17]} Qd7 {[%emt 0:04:03]} 23. Qd4 {[%emt 0:12:25]} Nc6 {[%emt 0:03:23]} 24. Qb6 {[%emt 0:00:08]} d5 {[%emt 0:01:23]} 25. Nb5 {[%emt 0:09:42]} d4 {[%emt 0:10:30]} 26. Bxd4 {[%emt 0:01:31]} axb5 {[%emt 0:00:38]} 27. Rxc6 {[%emt 0:00:21]} Qxd4 {[%emt 0:00:36]} 28. Qc7+ {[%emt 0:00:07]} Ka7 {[%emt 0:01:31]} 29. Qa5+ {[%emt 0:00:05]} Kb8 {[%emt 0:00:05]} 30. Qc7+ {[%emt 0:00:04]} Ka7 {[%emt 0:00:02]} 31. Qa5+ {[%emt 0:01:50]} Kb8 {[%emt 0:00:04]} 32. Qc7+ {[%emt 0:00:21]} 1/2-1/2

[Event "XIII Mediterranean Championship 2023"]
[Site "Castell-Platja d Aro"]
[Date "2023.11.05"]
[Round "2.17"]
[White "Garcia Jimenez, Francisco Javier"]
[Black "Moran Cabezas, Eric"]
[Result "1-0"]
[ECO "A36"]
[WhiteElo "2249"]
[BlackElo "1736"]
[Annotator "RC"]
[PlyCount "43"]
[EventDate "2023.10.26"]
[EventType "swiss"]
[EventCountry "ESP"]
[SourceTitle "playchess.com"]
[Source "ChessBase"]
[SourceQuality "1"]
[TimeControl "5400+30"]

1. c4 {[%emt 0:01:24]} c5 {[%emt 0:00:52]} 2. Nc3 {[%emt 0:00:11]} Nc6 {[%emt 0:00:06]} 3. g3 {[%emt 0:00:05]} Nf6 {[%emt 0:01:20]} 4. Bg2 {[%emt 0:00:07]} g6 {[%emt 0:01:16]} 5. d3 {[%emt 0:01:15]} Bg7 {[%emt 0:00:52]} 6. e4 {[%emt 0:00:39]} d6 {[%emt 0:02:20]} 7. Nge2 {[%emt 0:00:11]} O-O {[%emt 0:03:12]} 8. O-O {[%emt 0:00:49]} Bd7 {[%emt 0:05:28]} 9. h3 {[%emt 0:00:50]} Nd4 {[%emt 0:04:58]} 10. Be3 {[%emt 0:00:26]} e5 {[%emt 0:03:20]} 11. f4 {[%emt 0:00:11]} a6 {[%emt 0:06:43]} 12. Qd2 {[%emt 0:00:08]} Re8 {[%emt 0:01:59]} 13. Rf2 {[%emt 0:02:51]} b5 {[%emt 0:01:45]} 14. fxe5 {[%emt 0:03:56]} dxe5 {[%emt 0:07:13]} 15. Bg5 {[%emt 0:02:08]} Qb6 {[%emt 0:00:30]} 16. Bxf6 {[%emt 0:00:19]} Bxf6 {[%emt 0:00:10]} 17. Nd5 {[%emt 0:00:05]} Bg5 {[%emt 0:12:33]} 18. Qxg5 {[%emt 0:00:35]} Qd8 {[%emt 0:00:19]} 19. Nf6+ {[%emt 0:00:18]} Kg7 {[%emt 0:00:45]} 20. Nxe8+ {[%emt 0:00:06]} Qxe8 {[%emt 0:00:01]} 21. Nxd4 {[%emt 0:00:17]} cxd4 {[%emt 0:00:31]} 22. Raf1 {[%emt 0:00:09]} 1-0

[Event "XIII Mediterranean Championship 2023"]
[Site "Castell-Platja d Aro"]
[Date "2023.11.05"]
[Round "2.18"]
[White "Galvan Cipriani, Viviana"]
[Black "Andreu Lopez, Santiago"]
[Result "1-0"]
[ECO "E62"]
[WhiteElo "2077"]
[BlackElo "1834"]
[Annotator "NA RC"]
[PlyCount "49"]
[EventDate "2023.10.26"]
[EventType "swiss"]
[EventCountry "ESP"]
[SourceTitle "playchess.com"]
[Source "ChessBase"]
[SourceQuality "1"]
[TimeControl "5400+30"]

1. c4 {[%emt 1:31:00]} Nf6 {[%emt 0:05:25]} 2. Nc3 {[%emt 0:00:00]} g6 {[%emt 0:00:07]} 3. g3 {[%emt 0:00:00]} Bg7 {[%emt 0:00:06]} 4. Bg2 {[%emt 0:00:00]} O-O {[%emt 0:00:07]} 5. d4 {[%emt 0:00:00]} d6 {[%emt 0:00:29]} 6. Nf3 {[%emt 0:00:00]} c6 {[%emt 0:00:19]} 7. O-O {[%emt 0:00:00]} Qa5 {[%emt 0:00:13]} 8. e4 {[%emt 0:00:00]} Qh5 {[%emt 0:00:08]} 9. e5 {[%emt 0:00:00]} dxe5 {[%emt 0:01:10]} 10. Nxe5 {[%emt 0:00:00]} Ng4 {[%emt 0:07:13]} 11. Nf3 {[%emt 0:00:00]} Nf6 {[%emt 0:00:12]} 12. Re1 {[%emt 0:00:00]} Re8 {[%emt 0:02:56]} 13. Bf4 {[%emt 0:00:00]} Bh3 {[%emt 0:02:47]} 14. Qb3 {[%emt 0:00:00]} Ng4 {[%emt 0:27:58]} 15. Rad1 {[%emt 0:00:00]} Nd7 {[%emt 0:00:50]} 16. Qxb7 {[%emt 0:00:00]} e5 {[%emt 0:02:36]} 17. Bxh3 {[%emt 0:00:00]} Qxh3 {[%emt 0:01:11]} 18. Qxd7 {[%emt 0:00:00]} Red8 {[%emt 0:07:06]} 19. Qxf7+ {[%emt 0:00:00]} Kh8 {[%emt 0:00:10]} 20. dxe5 {[%emt 0:00:00]} Rf8 {[%emt 0:00:35]} 21. Qe7 {[%emt 0:00:00]} g5 {[%emt 0:00:12]} 22. Rd7 {[%emt 0:00:00]} Rg8 {[%emt 0:03:06]} 23. Ne4 {[%emt 0:00:00]} Bf8 {[%emt 0:02:57]} 24. Nexg5 {[%emt 0:00:00]} Rxg5 {[%emt 0:03:05]} 25. Qxg5 {[%emt 0:00:00]} 1-0

[Event "XIII Mediterranean Championship 2023"]
[Site "Castell-Platja d Aro"]
[Date "2023.11.05"]
[Round "2.19"]
[White "Vinas Racionero, Josep"]
[Black "Parramon Arimany, Marc"]
[Result "1-0"]
[ECO "B33"]
[WhiteElo "2075"]
[BlackElo "1834"]
[Annotator "NA RC"]
[PlyCount "97"]
[EventDate "2023.10.26"]
[EventType "swiss"]
[EventCountry "ESP"]
[SourceTitle "playchess.com"]
[Source "ChessBase"]
[SourceQuality "1"]
[TimeControl "5400+30"]

1. e4 {[%emt 0:01:30]} c5 {[%emt 0:00:40]} 2. Nf3 {[%emt 0:00:22]} Nc6 {[%emt 0:00:15]} 3. d4 {[%emt 0:00:16]} cxd4 {[%emt 0:00:10]} 4. Nxd4 {[%emt 0:00:08]} Nf6 {[%emt 0:00:12]} 5. Nc3 {[%emt 0:00:08]} e5 {[%emt 0:00:21]} 6. Ndb5 {[%emt 0:01:07]} d6 {[%emt 0:00:29]} 7. Bg5 {[%emt 0:00:33]} a6 {[%emt 0:00:14]} 8. Na3 {[%emt 0:00:07]} b5 {[%emt 0:00:34]} 9. Nd5 {[%emt 0:00:31]} Qa5+ {[%emt 0:00:42]} 10. Bd2 {[%emt 0:05:59]} Qd8 {[%emt 0:00:58]} 11. Bg5 {[%emt 0:00:40]} Qa5+ {[%emt 0:00:12]} 12. c3 {[%emt 0:00:58]} Nxe4 {[%emt 0:00:13]} 13. b4 {[%emt 0:01:11]} Qxa3 {[%emt 0:02:08]} 14. Bxb5 {[%emt 0:05:33]} axb5 {[%emt 0:01:33]} 15. Nc7+ {[%emt 0:00:14]} Kd7 {[%emt 0:00:48]} 16. Nxb5 {[%emt 0:00:09]} Nxg5 {[%emt 0:12:19]} 17. Nxa3 {[%emt 0:01:14]} Rxa3 {[%emt 0:02:19]} 18. Qc1 {[%emt 0:00:18]} Nf3+ {[%emt 0:00:47]} 19. gxf3 {[%emt 0:01:02]} Ra8 {[%emt 0:00:40]} 20. a4 {[%emt 0:04:19]} Bb7 {[%emt 0:00:32]} 21. Rg1 {[%emt 0:01:44]} g6 {[%emt 0:01:26]} 22. Qe3 {[%emt 0:01:02]} Be7 {[%emt 0:01:58]} 23. Kf1 {[%emt 0:06:10]} f5 {[%emt 0:03:58]} 24. Kg2 {[%emt 0:04:56]} f4 {[%emt 0:02:22]} 25. Qd3 {[%emt 0:02:46]} Rhb8 {[%emt 0:04:25]} 26. Rgb1 {[%emt 0:01:20]} e4 {[%emt 0:01:18]} 27. fxe4 {[%emt 0:02:02]} Ne5 {[%emt 0:00:43]} 28. Qh3+ {[%emt 0:00:23]} Ke8 {[%emt 0:00:53]} 29. f3 {[%emt 0:00:15]} g5 {[%emt 0:00:30]} 30. Qxh7 {[%emt 0:02:01]} g4 {[%emt 0:02:24]} 31. fxg4 {[%emt 0:01:34]} f3+ {[%emt 0:00:53]} 32. Kg3 {[%emt 0:01:10]} Rc8 {[%emt 0:00:38]} 33. Rb3 {[%emt 0:09:29]} Rc4 {[%emt 0:01:13]} 34. Rd1 {[%emt 0:04:36]} Bxe4 {[%emt 0:02:19]} 35. Qh5+ {[%emt 0:00:33]} Bg6 {[%emt 0:00:22]} 36. Qh8+ {[%emt 0:00:52]} Kf7 {[%emt 0:01:14]} 37. Qxa8 {[%emt 0:00:36]} Rxg4+ {[%emt 0:00:22]} 38. Kf2 {[%emt 0:00:49]} Rg2+ {[%emt 0:05:18]} 39. Kf1 {[%emt 0:00:53]} Rxh2 {[%emt 0:02:12]} 40. Qd5+ {[%emt 0:02:13]} Kg7 {[%emt 0:00:50]} 41. Kg1 {[%emt 0:02:43]} Rg2+ {[%emt 0:00:59]} 42. Kh1 {[%emt 0:00:07]} Rg4 {[%emt 0:00:52]} 43. Rd4 {[%emt 0:07:18]} f2 {[%emt 0:01:24]} 44. Qg2 {[%emt 0:02:28]} f1=Q+ {[%emt 0:06:12]} 45. Qxf1 {[%emt 0:00:11]} Be4+ {[%emt 0:00:07]} 46. Rxe4 {[%emt 0:01:07]} Rxe4 {[%emt 0:00:12]} 47. Rb2 {[%emt 0:01:25]} Bf6 {[%emt 0:01:09]} 48. Qg2+ {[%emt 0:00:56]} Rg4 {[%emt 0:01:14]} 49. Qxg4+ {[%emt 0:27:02]} 1-0